bitfinex/quotes_SOLUSD_20250207
["timestamp","ask_amount","ask_price","bid_price","bid_amount"]
[1738941789860,0.063,197.14,197.08,39.27834854]
[1738941790171,39.27834854,197.12,197.06,0.03]
[1738941790682,39.27834854,197.11,197.06,0.03]
[1738941790975,39.27834854,197.07,197.06,0.03]
[1738941791144,39.27834854,197.11,197.06,0.03]
[1738941791338,0.063,197.14,197.06,0.03]
[1738941791762,39.27834854,197.11,197.06,0.03]
[1738941791969,39.27834854,197.08,197.06,0.03]
[1738941792138,39.27834854,197.1,197.06,0.03]
[1738941792347,39.27834854,197.13,197.06,0.03]
[1738941792563,39.34134854,197.14,197.06,39.30834854]
[1738941792736,0.063,197.14,197.06,0.03]
[1738941792939,39.27834854,197.11,197.06,0.03]
[1738941793131,39.27834854,197.09,197.06,0.03]
[1738941793356,39.27834854,197.07,197.06,0.03]
[1738941793565,39.27834854,197.07,196.87,1.0]
[1738941793566,52.94117707,197.07,196.93,39.27834854]
[1738941793761,52.94117707,197.07,196.84,6.4814]
[1738941793762,39.27834854,196.98,196.91,39.27834854]
[1738941794056,39.27834854,196.97,196.89,39.27834854]
[1738941794482,39.27834854,196.99,196.91,39.27834854]
[1738941794677,39.27834854,196.98,196.91,39.27834854]
[1738941794878,39.27834854,196.99,196.91,39.27834854]
[1738941795040,1.52,197.06,196.98,39.27834854]
[1738941795245,1.52,197.06,197.02,39.27834854]
[1738941795557,1.52,197.06,196.96,17.77]
[1738941795757,1.52,197.06,197.01,39.27834854]
[1738941796162,40.79834854,197.06,196.99,39.27834854]
[1738941796381,40.79834854,197.06,196.96,5.0771]
[1738941796382,1.52,197.06,197.01,39.27834854]
[1738941796693,1.52,197.06,197.03,39.27834854]
[1738941796845,40.79834854,197.06,196.99,39.27834854]
[1738941797058,39.27834854,197.02,196.92,12.6953]
[1738941797364,39.27834854,197.02,196.83,0.26748555]
[1738941797365,0.95189688,197.02,196.83,0.26748555]
[1738941797554,13.41184853,197.04,196.83,0.26748555]
[1738941797555,0.95210417,197.03,196.92,39.27834854]
[1738941797886,39.27834854,197.02,196.95,39.27834854]
[1738941798066,39.27834854,196.98,196.91,39.27834854]
[1738941798375,39.27834854,197.0,196.93,39.27834854]
[1738941798566,6.0871,197.06,196.89,0.25098]
[1738941798741,20.0,197.03,196.84,12.89169228]
[1738941798944,0.95234252,197.02,196.84,12.89169228]
[1738941799251,17.98004853,197.01,196.84,25.59229228]
[1738941799457,13.41184853,196.99,196.84,17.7808]
[1738941799663,0.95220289,197.0,196.84,18.04892768]
[1738941799877,39.27834854,196.96,196.89,39.27834854]
[1738941800066,39.27834854,197.0,196.93,39.27834854]
[1738941800266,39.27834854,197.0,196.92,39.27834854]
[1738941800447,39.27834854,197.02,196.94,39.27834854]
[1738941800654,39.27834854,197.03,196.95,39.27834854]
[1738941801055,39.27834854,196.98,196.91,39.27834854]
[1738941801390,39.27834854,196.94,196.88,5.0792]
[1738941801541,4.5682,197.01,196.78,0.03]
[1738941801542,39.27834854,196.89,196.82,5.0807]
[1738941801747,13.41184853,196.95,196.82,5.0807]
[1738941801947,39.27834854,196.84,196.8,5.0811]
[1738941802152,39.27834854,196.84,196.78,7.84149228]
[1738941802371,39.27834854,196.83,196.78,7.84149228]
[1738941802874,39.27834854,196.84,196.78,12.92319228]
[1738941803088,39.27834854,196.83,196.78,7.84149228]
[1738941803268,39.27834854,196.84,196.78,12.92319228]
[1738941803592,39.27834854,196.83,196.81,0.03]
[1738941803775,39.27834854,196.86,196.81,0.03]
[1738941804273,0.95274652,196.86,196.81,0.03]
[1738941804595,8.1103,196.91,196.81,0.03]
[1738941804751,14.36440737,196.9,196.81,0.03]
[1738941805090,13.41184853,196.89,196.81,0.03]
[1738941805399,39.27834854,196.82,196.81,0.03]
[1738941805956,39.27834854,196.84,196.81,0.03]
[1738941806160,39.27834854,196.88,196.81,0.03]
[1738941806405,39.27834854,196.9,196.83,39.27834854]
[1738941806690,1.6277,196.91,196.85,39.27834854]
[1738941806860,6.2943,196.98,196.86,0.26812597]
[1738941807060,39.27834854,197.0,196.87,17.7781]
[1738941807285,39.27834854,197.01,196.94,39.27834854]
[1738941807784,40.93934854,197.03,196.96,39.27834854]
[1738941808094,7.18071248,197.03,196.87,17.7781]
[1738941808394,13.41184853,197.02,196.91,0.07250191]
[1738941808594,13.41184853,197.0,196.87,5.0794]
[1738941808896,0.95225666,196.99,196.9,7.81149228]
[1738941809061,39.27834854,196.95,196.91,5.0784]
[1738941809259,39.27834854,196.92,196.9,7.81149228]
[1738941809469,39.27834854,196.91,196.9,7.81149228]
[1738941809886,39.27834854,196.91,196.85,5.08]
[1738941810104,39.27834854,196.92,196.85,5.08]
[1738941810468,0.95231399,196.97,196.85,5.08]
[1738941810469,39.27834854,196.9,196.85,5.08]
[1738941810878,39.27834854,196.93,196.86,39.27834854]
[1738941811099,39.27834854,196.94,196.87,39.27834854]
[1738941811282,39.27834854,196.94,196.88,5.0792]
[1738941811493,0.95212447,197.02,196.88,17.7772]
[1738941811685,1.661,197.03,196.89,0.26757867]
[1738941811887,39.27834854,197.01,196.89,0.26757867]
[1738941812079,39.27834854,197.01,196.94,39.27834854]
[1738941812388,39.27834854,197.02,196.94,39.27834854]
[1738941812599,1.661,197.03,196.96,39.27834854]
[1738941812989,39.27834854,197.02,196.94,39.27834854]
[1738941813186,1.661,197.03,196.92,12.6949]
[1738941813495,39.27834854,197.1,196.92,12.6949]
[1738941813496,0.063,197.06,196.95,20.0]
[1738941813809,0.063,197.06,196.97,20.25098]
[1738941813996,0.063,197.06,197.0,0.25098]
[1738941814195,0.0001,197.06,197.03,20.0]
[1738941814400,0.0001,197.06,197.05,39.52932854]
[1738941814584,0.0001,197.06,197.05,39.27834854]
[1738941815079,0.0001,197.06,197.03,39.33589854]
[1738941815293,0.0001,197.06,197.04,5.0751]
[1738941815492,0.0001,197.06,197.03,5.13285]
[1738941815689,0.0001,197.06,197.03,0.05755]
[1738941815690,39.27834854,197.05,197.03,0.05755]
[1738941815905,39.27844854,197.06,197.03,5.13285]
[1738941816232,0.95147788,197.12,197.03,5.13285]
[1738941816511,39.27834854,197.09,197.03,5.13285]
[1738941817084,0.063,197.14,197.04,39.27834854]
[1738941817085,39.27834854,197.12,197.04,39.27834854]
[1738941817283,0.063,197.14,197.03,17.82125]
[1738941817284,39.34134854,197.14,197.07,39.27834854]
[1738941817515,0.063,197.14,197.09,39.27834854]
[1738941818016,0.063,197.14,197.11,39.27834854]
[1738941818405,0.063,197.14,197.13,39.27834854]
[1738941818575,0.063,197.14,197.12,39.27834854]
[1738941818782,0.063,197.14,197.11,39.27834854]
[1738941819015,0.063,197.14,197.12,39.27834854]
[1738941819181,0.063,197.14,197.13,5.0727]
[1738941819579,0.0001,197.14,197.13,44.35104854]
[1738941819806,0.0001,197.14,197.13,5.0727]
[1738941819997,0.0001,197.14,197.13,4.99900572]
[1738941820390,0.0001,197.14,197.13,44.27735426]
[1738941820697,0.0001,197.14,197.03,0.05755]
[1738941820902,39.27834854,197.07,197.04,7.81149228]
[1738941821083,0.0001,197.14,197.04,7.81149228]
[1738941821285,0.0001,197.14,197.04,8.07755888]
[1738941821511,0.0001,197.14,197.07,20.0]
[1738941821700,0.0001,197.14,197.08,20.25098]
[1738941822010,0.0001,197.14,197.08,20.0]
[1738941822212,0.0001,197.14,197.09,39.27834854]
[1738941822411,39.27834854,197.12,197.05,57.04024854]
[1738941822706,39.27834854,197.13,197.06,39.27834854]
[1738941822907,0.0001,197.14,197.08,20.0]
[1738941823207,0.0001,197.14,197.06,5.0745]
[1738941823409,13.41184853,197.21,197.06,5.0745]
[1738941823612,0.68506576,197.21,197.06,5.0745]
[1738941824005,39.27834854,197.15,197.08,39.27834854]
[1738941824313,39.27834854,197.17,197.1,39.27834854]
[1738941824512,39.27834854,197.14,197.07,39.27834854]
[1738941824717,39.27834854,197.13,197.06,57.03924854]
[1738941825009,39.27834854,197.13,197.06,17.7609]
[1738941825215,39.27834854,197.17,197.09,39.27834854]
[1738941825417,39.27834854,197.17,197.1,39.27834854]
[1738941825708,39.27834854,197.15,197.07,39.27834854]
[1738941825917,39.27834854,197.15,197.08,40.03922407]
[1738941826093,39.27834854,197.14,197.07,39.27834854]
[1738941826300,39.27834854,197.12,197.06,17.7609]
[1738941826498,39.27834854,197.11,197.06,17.7609]
[1738941827222,39.27834854,197.12,197.06,17.7609]
[1738941827427,39.27834854,197.13,197.06,57.03924854]
[1738941827604,4.0561,197.24,197.07,0.76094784]
[1738941827812,39.27834854,197.18,197.11,39.27834854]
[1738941828328,39.27834854,197.12,197.06,57.03924854]
[1738941828515,0.68506576,197.19,197.06,17.7609]
[1738941828716,39.27834854,197.2,197.07,0.76097817]
[1738941829027,39.27834854,197.2,197.06,18.52173696]
[1738941829191,5.7033,197.26,197.1,0.25098]
[1738941829392,5.7033,197.26,197.11,18.51718217]
[1738941829620,5.7033,197.26,197.11,17.7565]
[1738941830114,39.27834854,197.15,197.11,17.7565]
[1738941830321,39.27834854,197.15,197.06,0.76068478]
[1738941830322,39.27834854,197.13,197.1,5.0735]
[1738941830529,39.27834854,197.11,197.1,5.0735]
[1738941830829,13.41184853,197.23,197.1,5.0735]
[1738941830830,6.38836576,197.26,197.1,18.51830165]
[1738941830996,5.7033,197.26,197.11,0.76065453]
[1738941831488,39.27834854,197.22,197.15,39.27834854]
[1738941831928,39.27834854,197.24,197.17,39.27834854]
[1738941832103,39.27834854,197.22,197.15,39.27834854]
[1738941832309,39.27834854,197.21,197.15,12.6801]
[1738941832516,39.27834854,197.22,197.16,39.27834854]
[1738941832803,5.7031,197.26,197.15,12.6801]
[1738941833023,5.7031,197.26,197.13,17.7546]
[1738941833404,0.063,197.24,197.13,17.7546]
[1738941833605,0.063,197.24,197.14,0.76062006]
[1738941833812,0.063,197.24,197.2,39.27834854]
[1738941834015,0.063,197.24,197.19,39.27834854]
[1738941834326,39.27834854,197.23,197.18,5.0715]
[1738941834723,39.27834854,197.19,197.18,5.0715]
[1738941834931,39.27834854,197.19,197.13,5.0727]
[1738941835111,39.27834854,197.2,197.13,44.35104854]
[1738941835314,39.27834854,197.2,197.13,57.03294854]
[1738941835516,39.27834854,197.22,197.15,39.27834854]
[1738941835718,39.27834854,197.23,197.16,40.03884568]
[1738941835916,0.063,197.24,197.17,39.27834854]
[1738941835917,39.34134854,197.24,197.17,39.27834854]
[1738941836113,0.063,197.24,197.21,39.27834854]
[1738941836313,0.063,197.24,197.2,39.27834854]
[1738941836513,0.063,197.24,197.19,57.02764854]
[1738941836719,39.34134854,197.24,197.19,17.7493]
[1738941837114,0.063,197.24,197.19,17.7493]
[1738941837317,39.27834854,197.23,197.19,17.7493]
[1738941837530,39.34134854,197.24,197.19,17.7493]
[1738941837914,39.27834854,197.22,197.19,17.7493]
[1738941838116,39.27834854,197.21,197.19,17.7493]
[1738941838327,0.063,197.24,197.19,12.6781]
[1738941838328,39.27834854,197.22,197.19,12.6781]
[1738941838631,39.27834854,197.23,197.19,12.6781]
[1738941839040,39.34134854,197.24,197.19,12.6781]
[1738941839339,0.063,197.24,197.19,12.6781]
[1738941839541,39.27834854,197.22,197.18,5.0715]
[1738941839832,39.27834854,197.22,197.18,17.7502]
[1738941840021,39.27834854,197.2,197.18,17.7502]
[1738941840223,39.27834854,197.21,197.18,5.0715]
[1738941840423,39.27834854,197.2,197.18,5.0715]
[1738941840631,39.27834854,197.19,197.13,12.6816]
[1738941840828,39.27834854,197.19,197.14,5.0725]
[1738941841037,39.27834854,197.2,197.15,0.25098]
[1738941841237,39.27834854,197.21,197.15,40.28993461]
[1738941841409,39.27834854,197.22,197.18,20.0]
[1738941842316,0.063,197.24,197.14,17.7538]
[1738941842518,0.063,197.24,197.16,1.0]
[1738941842716,0.063,197.26,197.23,20.25098]
[1738941842717,0.0001,197.26,197.23,20.25098]
[1738941842916,0.063,197.34,197.27,20.0]
[1738941843125,0.063,197.34,197.28,2.01105628]
[1738941843442,8.1796,197.43,197.28,2.01105628]
[1738941843443,1.6504,197.43,197.3,1.0]
[1738941843749,39.27834854,197.42,197.35,39.27834854]
[1738941844039,1.6504,197.43,197.33,39.27834854]
[1738941844040,39.27834854,197.4,197.33,39.27834854]
[1738941844240,39.27834854,197.39,197.32,39.27834854]
[1738941844423,39.27834854,197.37,197.29,0.25098]
[1738941844637,6.38746576,197.43,197.31,12.6702]
[1738941844824,6.38746576,197.43,197.33,0.25098]
[1738941844825,1.6504,197.43,197.33,0.25098]
[1738941845026,1.6504,197.43,197.35,20.0]
[1738941845739,0.063,197.43,197.37,39.52932854]
[1738941845942,0.063,197.43,197.4,39.27834854]
[1738941846146,0.063,197.43,197.42,39.27834854]
[1738941846446,0.0001,197.43,197.4,7.2]
[1738941846829,0.0001,197.43,197.35,5.0671]
[1738941847223,0.0001,197.43,197.39,0.25098]
[1738941847539,0.0001,197.43,197.39,1.01058037]
[1738941847717,0.0001,197.43,197.42,39.27834854]
[1738941848456,39.34134854,197.49,197.46,5.0643]
[1738941848457,0.063,197.49,197.46,5.0643]
[1738941848662,0.063,197.53,197.48,59.52932854]
[1738941848819,0.063,197.53,197.48,39.27834854]
[1738941849245,39.27834854,197.56,197.49,39.27834854]
[1738941849449,39.27834854,197.57,197.5,39.27834854]
[1738941849659,39.27834854,197.58,197.51,39.27834854]
[1738941849941,39.27834854,197.58,197.52,39.27834854]
[1738941850126,1.5581,197.6,197.51,0.12549]
[1738941850127,39.27834854,197.57,197.51,0.12549]
[1738941850343,1.5581,197.6,197.53,39.27834854]
[1738941850685,39.27834854,197.59,197.53,5.0625]
[1738941850949,39.27834854,197.58,197.53,5.0625]
[1738941851124,40.83644854,197.6,197.53,44.34084854]
[1738941851336,39.34134854,197.63,197.56,39.27834854]
[1738941851555,0.063,197.63,197.54,0.75901838]
[1738941851723,0.063,197.63,197.53,5.0625]
[1738941851921,0.063,197.63,197.53,17.7188]
[1738941852126,0.063,197.63,197.55,0.12549]
[1738941852552,0.063,197.63,197.55,5.062]
[1738941852852,0.063,197.63,197.59,39.27834854]
[1738941853027,0.063,197.63,197.57,39.27834854]
[1738941853227,0.063,197.63,197.55,5.062]
[1738941853441,0.063,197.63,197.5,12.6577]
[1738941853963,0.063,197.63,197.47,5.064]
[1738941853964,0.68506576,197.62,197.47,5.064]
[1738941854156,33.53733853,197.61,197.47,5.064]
[1738941854457,39.27834854,197.57,197.51,2.0]
[1738941854653,39.27834854,197.55,197.48,44.34204854]
[1738941854833,39.27834854,197.52,197.46,5.0641]
[1738941855034,39.27834854,197.55,197.51,1.0]
[1738941855232,39.27834854,197.52,197.47,1.0]
[1738941855530,6.1993,197.56,197.52,1.0]
[1738941855750,6.1993,197.67,197.55,1.0]
[1738941855953,6.1993,197.67,197.55,2.0]
[1738941856264,6.1993,197.67,197.55,1.0]
[1738941856555,13.41184853,197.66,197.52,1.0]
[1738941856751,14.41728,197.65,197.51,1.0]
[1738941856960,39.27834854,197.53,197.48,1.0]
[1738941857140,39.27834854,197.58,197.52,1.0]
[1738941857334,13.41184853,197.6,197.47,6.0638]
[1738941857545,0.25098,197.63,197.47,1.0]
[1738941857757,13.66282853,197.6,197.42,1.0]
[1738941857966,6.496,197.52,197.38,14.87759228]
[1738941858139,6.496,197.52,197.38,13.87759228]
[1738941858552,39.27834854,197.43,197.38,8.81149228]
[1738941858882,39.27834854,197.5,197.36,1.0]
[1738941858883,39.27834854,197.4,197.36,1.0]
[1738941859034,39.27834854,197.39,197.34,60.24]
[1738941859231,39.27834854,197.43,197.36,1.0]
[1738941859449,39.27834854,197.43,197.34,61.24]
[1738941859450,39.27834854,197.39,197.34,60.24]
[1738941859652,39.27834854,197.37,197.34,60.24]
[1738941859853,1.6153,197.46,197.36,1.0]
[1738941860065,39.27834854,197.41,197.36,1.0]
[1738941860362,39.27834854,197.43,197.38,1.0]
[1738941860954,39.27834854,197.43,197.36,6.0667]
[1738941860955,39.27834854,197.43,197.37,1.0]
[1738941861157,5.6669,197.46,197.36,2.0]
[1738941861158,39.27834854,197.42,197.36,2.0]
[1738941861363,39.27834854,197.4,197.35,1.0]
[1738941861553,39.27834854,197.36,197.31,1.0]
[1738941862076,39.27834854,197.37,197.31,2.0]
[1738941862245,39.27834854,197.38,197.32,1.0]
[1738941862644,39.27834854,197.38,197.31,1.0]
[1738941862843,39.27834854,197.38,197.28,0.063]
[1738941862844,39.27834854,197.33,197.28,1.063]
[1738941863163,39.27834854,197.4,197.28,1.063]
[1738941863164,39.27834854,197.36,197.3,1.0]
[1738941863347,39.27834854,197.37,197.33,1.0]
[1738941864259,39.27834854,197.39,197.33,1.0]
[1738941864565,39.27834854,197.34,197.28,0.063]
[1738941864860,39.27834854,197.29,197.28,0.063]
[1738941865168,6.0214,197.37,197.28,0.063]
[1738941865356,40.88394854,197.29,197.2,0.063]
[1738941865554,39.27834854,197.22,197.2,0.063]
[1738941865866,39.27834854,197.23,197.2,0.063]
[1738941866064,39.27834854,197.24,197.2,0.063]
[1738941866370,39.27834854,197.27,197.2,2.063]
[1738941866662,39.27834854,197.28,197.23,1.0]
[1738941866847,39.27834854,197.25,197.2,0.063]
[1738941867044,39.27834854,197.28,197.23,1.0]
[1738941867246,40.88394854,197.29,197.24,1.0]
[1738941867655,40.88394854,197.29,197.27,2.0]
[1738941867656,1.6056,197.29,197.27,2.0]
[1738941867853,20.257,197.47,197.3,2.0]
[1738941867854,7.5698,197.37,197.3,2.0]
[1738941868058,46.84814854,197.37,197.32,1.0]
[1738941868243,7.5698,197.37,197.32,1.0]
[1738941868444,46.84814854,197.37,197.32,1.0]
[1738941868756,39.27834854,197.36,197.3,5.0682]
[1738941868955,39.27834854,197.36,197.3,6.0682]
[1738941869165,39.27834854,197.36,197.31,1.0]
[1738941869369,39.27834854,197.32,197.28,2.0]
[1738941869673,11.6231,197.37,197.27,1.0]
[1738941869674,39.27834854,197.31,197.27,1.0]
[1738941869974,39.27834854,197.34,197.29,1.0]
[1738941870152,7.5698,197.37,197.31,1.0]
[1738941870774,7.5698,197.37,197.32,1.0]
[1738941870950,11.6231,197.37,197.27,1.0]
[1738941871170,39.27834854,197.34,197.28,1.0]
[1738941871471,1.5484,197.37,197.36,1.0]
[1738941871669,39.27834854,197.42,197.35,40.27834854]
[1738941871966,10.4652,197.44,197.34,1.0]
[1738941872167,10.4652,197.44,197.32,1.0]
[1738941872384,0.12549,197.43,197.31,1.0]
[1738941872543,4.0522,197.42,197.31,1.0]
[1738941872874,13.53733853,197.41,197.3,1.0]
[1738941873066,39.27834854,197.31,197.27,0.063]
[1738941873270,0.12549,197.38,197.27,0.063]
[1738941873271,39.27834854,197.3,197.27,0.063]
[1738941873571,39.27834854,197.33,197.29,1.0]
[1738941873874,39.27834854,197.33,197.3,1.0]
[1738941874372,39.27834854,197.34,197.3,1.0]
[1738941875251,39.27834854,197.33,197.3,1.0]
[1738941875572,39.27834854,197.33,197.31,1.0]
[1738941875768,39.27834854,197.34,197.31,1.0]
[1738941875978,39.27834854,197.34,197.3,1.0]
[1738941876156,39.27834854,197.34,197.29,1.0]
[1738941876360,39.27834854,197.3,197.27,0.063]
[1738941876553,39.27834854,197.28,197.27,0.063]
[1738941877076,39.27834854,197.29,197.27,0.063]
[1738941877254,30.063,197.69,197.27,0.063]
[1738941877255,4.0506,197.5,197.41,1.0]
[1738941877456,1.55,197.62,197.32,0.12549]
[1738941877457,1.26122257,197.59,197.48,1.0]
[1738941877785,4.0483,197.61,197.54,1.0]
[1738941877950,1.55,197.62,197.5,1.0]
[1738941878340,2.027282,197.61,197.54,1.0]
[1738941878450,39.27834854,197.58,197.51,39.27834854]
[1738941878850,39.27834854,197.58,197.51,40.27834854]
[1738941879075,39.27834854,197.58,197.5,1.0]
[1738941879076,40.82834854,197.62,197.57,1.0]
[1738941879280,1.55,197.62,197.58,2.0]
[1738941879478,39.27834854,197.66,197.58,2.0]
[1738941879782,39.27834854,197.62,197.54,2.0]
[1738941880152,39.27834854,197.62,197.56,1.0]
[1738941880352,39.27834854,197.62,197.56,2.0]
[1738941880552,39.27834854,197.62,197.55,1.0]
[1738941880858,39.27834854,197.62,197.57,1.0]
[1738941881058,39.27834854,197.64,197.58,2.0]
[1738941881248,39.27834854,197.64,197.57,1.0]
[1738941881451,4.0772,197.67,197.57,1.0]
[1738941882062,0.03,197.67,197.65,0.7]
[1738941882675,39.27834854,197.66,197.65,0.7]
[1738941883576,0.03,197.67,197.65,0.7]
[1738941884278,39.27834854,197.66,197.65,0.7]
[1738941885051,0.03,197.67,197.65,0.7]
[1738941886279,39.27834854,197.66,197.65,0.7]
[1738941887061,52.81568707,197.66,197.65,0.7]
[1738941887264,56.86298707,197.66,197.65,0.7]
[1738941888085,43.32564854,197.66,197.65,0.7]
[1738941888390,13.41184853,197.65,197.55,1.0]
[1738941888578,39.27834854,197.56,197.5,6.063]
[1738941888755,39.27834854,197.52,197.46,1.0]
[1738941889067,39.27834854,197.52,197.44,40.27834854]
[1738941889068,39.27834854,197.52,197.44,41.27834854]
[1738941889270,39.27834854,197.52,197.48,1.0]
[1738941889664,4.0495,197.56,197.48,1.0]
[1738941889665,39.27834854,197.56,197.49,1.0]
[1738941889870,39.27834854,197.56,197.51,1.0]
[1738941890075,39.27834854,197.58,197.52,1.0]
[1738941890258,39.27834854,197.58,197.53,2.0]
[1738941890467,39.27834854,197.62,197.56,1.0]
[1738941890775,39.27834854,197.66,197.6,2.0]
[1738941891166,0.03,197.68,197.65,1.0]
[1738941891364,0.03,197.68,197.63,1.0]
[1738941891561,0.03,197.68,197.61,2.0]
[1738941891562,39.30834854,197.67,197.61,2.0]
[1738941891767,39.27834854,197.65,197.6,1.0]
[1738941891968,39.30834854,197.67,197.6,1.0]
[1738941892185,39.30834854,197.67,197.6,41.27834854]
[1738941892485,39.27834854,197.63,197.6,1.0]
[1738941892686,39.30834854,197.67,197.62,1.0]
[1738941892865,39.30834854,197.67,197.59,6.0609]
[1738941893066,39.30834854,197.67,197.59,7.0609]
[1738941893264,39.30834854,197.67,197.62,1.0]
[1738941893465,39.30834854,197.67,197.59,7.0609]
[1738941893681,39.27834854,197.65,197.59,1.0]
[1738941893885,39.27834854,197.63,197.54,41.27834854]
[1738941894193,39.27834854,197.61,197.56,1.0]
[1738941894361,39.27834854,197.59,197.55,1.0]
[1738941894561,39.27834854,197.61,197.55,1.0]
[1738941894764,39.27834854,197.59,197.54,1.0]
[1738941894963,39.27834854,197.64,197.59,1.0]
[1738941895182,39.27834854,197.62,197.58,1.0]
[1738941895484,39.27834854,197.61,197.54,2.0]
[1738941895676,39.27834854,197.6,197.57,1.0]
[1738941895884,39.27834854,197.61,197.55,1.0]
[1738941896187,39.27834854,197.6,197.54,6.0622]
[1738941896371,39.27834854,197.6,197.54,1.0]
[1738941896575,39.27834854,197.58,197.53,5.0623]
[1738941896878,39.27834854,197.58,197.52,1.0]
[1738941897088,39.27834854,197.58,197.51,5.12021]
[1738941897089,39.27834854,197.56,197.51,1.05741]
[1738941897265,39.27834854,197.56,197.51,0.05741]
[1738941897987,39.27834854,197.54,197.51,0.05741]
[1738941898778,39.27834854,197.53,197.51,0.05741]
[1738941899174,39.27834854,197.52,197.51,0.05741]
[1738941899387,43.32854854,197.52,197.51,0.05741]
[1738941900194,39.27834854,197.52,197.51,0.05741]
[1738941901202,91.96854561,197.52,197.51,0.05741]
[1738941901692,52.69019707,197.52,197.51,0.05741]
[1738941902193,92.09403561,197.52,197.51,0.05741]
[1738941902394,96.14423561,197.52,197.51,0.05741]
[1738941902576,56.74039707,197.52,197.51,0.05741]
[1738941902983,39.27834854,197.53,197.51,0.05741]
[1738941903185,7.7263,197.64,197.53,2.0]
[1738941903500,7.7263,197.64,197.57,1.0]
[1738941903698,39.27834854,197.62,197.57,1.0]
[1738941903997,39.27834854,197.63,197.59,1.0]
[1738941904300,39.27834854,197.65,197.6,2.0]
[1738941904694,24.58577556,197.65,197.62,1.0]
[1738941904887,24.58577556,197.66,197.62,1.0]
[1738941905088,0.03,197.67,197.64,2.0]
[1738941905281,0.03,197.67,197.66,1.0]
[1738941905487,0.03,197.67,197.66,2.0]
[1738941906817,0.03,197.67,197.66,41.93311273]
[1738941906994,0.03,197.68,197.67,7.30988]
[1738941907176,1.6351,197.82,197.68,1.12549]
[1738941907402,0.0001,197.69,197.68,2.25098]
[1738941907796,0.0001,197.69,197.68,2.75843341]
[1738941907991,0.03,197.85,197.8,1.0]
[1738941908305,0.03,197.85,197.82,1.0]
[1738941908482,0.03,197.85,197.82,2.0]
[1738941908681,0.03,197.85,197.82,46.98821273]
[1738941909022,0.03,197.85,197.84,2.25098]
[1738941909311,0.03,197.86,197.85,22.25098]
[1738941909485,0.03,197.87,197.86,22.25098]
[1738941909883,0.03,197.87,197.86,41.93311273]
[1738941910604,39.96311273,197.87,197.82,2.0]
[1738941910785,4.073,197.87,197.79,1.0]
[1738941910981,13.53733853,197.86,197.77,1.0]
[1738941911216,13.53733853,197.86,197.73,1.0]
[1738941911386,0.12549,197.85,197.7,2.0]
[1738941911583,0.12549,197.82,197.69,1.0]
[1738941911824,6.4039,197.84,197.74,2.0]
[1738941911995,39.93311273,197.8,197.73,40.93311273]
[1738941912317,6.4039,197.84,197.71,1.0]
[1738941912318,0.12549,197.83,197.71,1.0]
[1738941912510,13.53733853,197.8,197.72,1.0]
[1738941912697,6.4039,197.84,197.72,1.0]
[1738941912900,4.0438,197.83,197.72,1.0]
[1738941913099,13.53733853,197.82,197.74,1.0]
[1738941913412,13.53733853,197.82,197.7,6.0581]
[1738941913413,39.93311273,197.84,197.79,1.0]
[1738941913590,39.93311273,197.86,197.83,1.0]
[1738941913797,0.03,197.87,197.83,1.0]
[1738941914119,0.03,197.87,197.86,1.0]
[1738941914491,0.03,197.87,197.85,1.0]
[1738941914709,39.93311273,197.86,197.79,2.0]
[1738941914913,4.0433,197.86,197.79,1.0]
[1738941915220,13.53733853,197.85,197.77,1.0]
[1738941915387,13.53733853,197.85,197.76,6.5]
[1738941915784,20.0,197.82,197.7,1.0]
[1738941916025,39.93311273,197.73,197.7,1.0]
[1738941916191,39.93311273,197.73,197.68,1.0]
[1738941916192,39.93311273,197.71,197.66,1.0]